[Event "Chessable Masters - Torneo preliminare"]
[White "Yu, Yangyi"]
[Black "Mitrabha, Guha"]
[WhiteFideId "8603820"]
[BlackFideId "5057000"]
[WhiteElo "2734"]
[BlackElo "2401"]
[Result "0-1"]
[Round "2"]
[TimeControl "600+2"]
[Date "2023.03.13"]
[WhiteClock "0:00:02"]
[BlackClock "0:01:13"]

1. Nf3 {[%clk 0:09:26]}  Nf6 {[%clk 0:09:59]} 2. g3 {[%clk 0:09:25]}  b6 {[%clk 0:09:52]} 3. Bg2 {[%clk 0:09:25]}  Bb7 {[%clk 0:09:54]} 4. O-O {[%clk 0:09:22]}  c5 {[%clk 0:09:55]} 5. c4 {[%clk 0:09:19]}  g6 {[%clk 0:09:55]} 6. b3 {[%clk 0:09:08]}  Bg7 {[%clk 0:09:56]} 7. Bb2 {[%clk 0:09:08]}  O-O {[%clk 0:09:57]} 8. d4 {[%clk 0:08:56]}  cxd4 {[%clk 0:09:00]} 9. Qxd4 {[%clk 0:08:56]}  d6 {[%clk 0:09:01]} 10. Nc3 {[%clk 0:08:46]}  Nbd7 {[%clk 0:09:01]} 11. Ne1 {[%clk 0:08:36]}  Qc8 {[%clk 0:08:46]} 12. Rc1 {[%clk 0:08:11]}  Ne4 {[%clk 0:07:44]} 13. Qe3 {[%clk 0:08:05]}  Nxc3 {[%clk 0:07:39]} 14. Bxc3 {[%clk 0:08:06]}  Bxc3 {[%clk 0:07:38]} 15. Rxc3 {[%clk 0:08:08]}  Bxg2 {[%clk 0:07:28]} 16. Nxg2 {[%clk 0:08:10]}  Re8 {[%clk 0:07:27]} 17. Nf4 {[%clk 0:08:09]}  Nf6 {[%clk 0:07:20]} 18. Qf3 {[%clk 0:08:06]}  Qf5 {[%clk 0:07:15]} 19. Rd1 {[%clk 0:08:02]}  Rac8 {[%clk 0:07:13]} 20. h4 {[%clk 0:07:38]}  b5 {[%clk 0:06:59]} 21. cxb5 {[%clk 0:06:08]}  Rxc3 {[%clk 0:06:47]} 22. Qxc3 {[%clk 0:06:10]}  Qxb5 {[%clk 0:06:49]} 23. Rc1 {[%clk 0:06:07]}  a5 {[%clk 0:06:35]} 24. Qc6 {[%clk 0:05:57]}  Rb8 {[%clk 0:06:31]} 25. Qxb5 {[%clk 0:05:22]}  Rxb5 {[%clk 0:06:33]} 26. Rc8+ {[%clk 0:05:23]}  Kg7 {[%clk 0:06:33]} 27. Rc7 {[%clk 0:05:25]}  Kf8 {[%clk 0:06:28]} 28. Ra7 {[%clk 0:05:16]}  Ne4 {[%clk 0:06:17]} 29. a4 {[%clk 0:04:50]}  Rxb3 {[%clk 0:05:47]} 30. Rxa5 {[%clk 0:04:51]}  e6 {[%clk 0:05:45]} 31. Ra7 {[%clk 0:04:30]}  Ra3 {[%clk 0:05:37]} 32. a5 {[%clk 0:04:30]}  Nc5 {[%clk 0:05:30]} 33. Kg2 {[%clk 0:03:42]}  Kg7 {[%clk 0:05:29]} 34. Nh3 {[%clk 0:03:14]}  h6 {[%clk 0:05:29]} 35. Nf4 {[%clk 0:03:15]}  Kf6 {[%clk 0:05:29]} 36. Ra8 {[%clk 0:03:08]}  Ra2 {[%clk 0:05:20]} 37. Kf1 {[%clk 0:02:55]}  Kf5 {[%clk 0:04:49]} 38. Ra7 {[%clk 0:02:52]}  Kf6 {[%clk 0:04:48]} 39. Ra8 {[%clk 0:02:52]}  Kf5 {[%clk 0:04:09]} 40. f3 {[%clk 0:02:53]}  g5 {[%clk 0:03:54]} 41. hxg5 {[%clk 0:02:53]}  hxg5 {[%clk 0:03:56]} 42. Ng2 {[%clk 0:02:41]}  Ke5 {[%clk 0:03:40]} 43. Ne3 {[%clk 0:02:37]}  d5 {[%clk 0:03:34]} 44. Rg8 {[%clk 0:02:04]}  Kd4 {[%clk 0:03:33]} 45. Ng2 {[%clk 0:01:50]}  f6 {[%clk 0:03:26]} 46. Rf8 {[%clk 0:01:38]}  Ke5 {[%clk 0:03:26]} 47. Ne3 {[%clk 0:00:57]}  f5 {[%clk 0:03:25]} 48. Rg8 {[%clk 0:00:58]}  Nb3 {[%clk 0:03:14]} 49. Rxg5 {[%clk 0:00:53]}  Nd4 {[%clk 0:03:12]} 50. a6 {[%clk 0:00:38]}  Rxe2 {[%clk 0:02:54]} 51. Ng4+ {[%clk 0:00:08]}  Kd6 {[%clk 0:02:53]} 52. Nf6 {[%clk 0:00:07]}  Ra2 {[%clk 0:02:44]} 53. Ne8+ {[%clk 0:00:07]}  Ke5 {[%clk 0:02:43]} 54. Nc7 {[%clk 0:00:06]}  Nxf3 {[%clk 0:02:38]} 55. Rg6 {[%clk 0:00:07]}  Nd4 {[%clk 0:02:39]} 56. Rh6 {[%clk 0:00:06]}  Kd6 {[%clk 0:02:33]} 57. Rh7 {[%clk 0:00:04]}  Kc6 {[%clk 0:02:14]} 58. Re7 {[%clk 0:00:05]}  e5 {[%clk 0:02:05]} 59. Ne8 {[%clk 0:00:03]}  e4 {[%clk 0:01:55]} 60. a7 {[%clk 0:00:04]}  Nb5 {[%clk 0:01:51]} 61. Re6+ {[%clk 0:00:04]}  Kc5 {[%clk 0:01:48]} 62. Nf6 {[%clk 0:00:04]}  Rxa7 {[%clk 0:01:48]} 63. Re5 {[%clk 0:00:06]}  Nc3 {[%clk 0:01:43]} 64. Rxf5 {[%clk 0:00:07]}  Kd4 {[%clk 0:01:38]} 65. Ng4 {[%clk 0:00:08]}  Ra2 {[%clk 0:01:18]} 66. Rf4 {[%clk 0:00:09]}  Nd1 {[%clk 0:01:10]} 67. Ke1 {[%clk 0:00:09]}  Ne3 {[%clk 0:01:08]} 68. Nxe3 {[%clk 0:00:03]}  Kxe3 {[%clk 0:01:09]} 69. Kf1 {[%clk 0:00:04]}  d4 {[%clk 0:01:10]} 70. Rf8 {[%clk 0:00:05]}  d3 {[%clk 0:01:11]} 71. Rd8 {[%clk 0:00:02]}  d2 {[%clk 0:01:12]} 72. Kg2 {[%clk 0:00:02]}  d1=Q+ {[%clk 0:01:13]} 0-1


[Site "Internet"]

[Event "Chessable Masters - Torneo preliminare"]
[White "Makarian, Rudik"]
[Black "Santos Ruiz, Miguel"]
[WhiteFideId "44105681"]
[BlackFideId "22291482"]
[WhiteElo "2462"]
[BlackElo "2491"]
[Result "1-0"]
[Round "2"]
[TimeControl "600+2"]
[Date "2023.03.13"]
[WhiteClock "0:04:16"]
[BlackClock "0:01:30"]

1. d4 {[%clk 0:10:01]}  Nf6 {[%clk 0:09:51]} 2. c4 {[%clk 0:10:03]}  e6 {[%clk 0:09:52]} 3. Nf3 {[%clk 0:10:05]}  d5 {[%clk 0:09:53]} 4. Nc3 {[%clk 0:10:06]}  Bb4 {[%clk 0:09:53]} 5. Qa4+ {[%clk 0:10:08]}  Nc6 {[%clk 0:09:54]} 6. Bd2 {[%clk 0:10:10]}  O-O {[%clk 0:09:53]} 7. a3 {[%clk 0:10:11]}  Bxc3 {[%clk 0:09:53]} 8. Bxc3 {[%clk 0:10:13]}  Ne4 {[%clk 0:09:48]} 9. Qc2 {[%clk 0:10:01]}  e5 {[%clk 0:08:34]} 10. cxd5 {[%clk 0:09:16]}  Qxd5 {[%clk 0:08:32]} 11. dxe5 {[%clk 0:09:05]}  Bf5 {[%clk 0:08:13]} 12. Nh4 {[%clk 0:07:27]}  Nxf2 {[%clk 0:06:05]} 13. e4 {[%clk 0:05:58]}  Nxh1 {[%clk 0:05:41]} 14. exd5 {[%clk 0:05:32]}  Bxc2 {[%clk 0:05:43]} 15. dxc6 {[%clk 0:05:34]}  Be4 {[%clk 0:05:19]} 16. cxb7 {[%clk 0:05:29]}  Bxb7 {[%clk 0:05:20]} 17. Bc4 {[%clk 0:05:28]}  Rad8 {[%clk 0:03:46]} 18. Ke2 {[%clk 0:05:23]}  Bd5 {[%clk 0:02:46]} 19. Bxd5 {[%clk 0:05:22]}  Rxd5 {[%clk 0:02:48]} 20. Rxh1 {[%clk 0:05:24]}  f6 {[%clk 0:02:43]} 21. Nf5 {[%clk 0:04:58]}  Re8 {[%clk 0:02:22]} 22. Ne3 {[%clk 0:05:00]}  Rb5 {[%clk 0:01:57]} 23. exf6 {[%clk 0:04:59]}  gxf6 {[%clk 0:01:59]} 24. Kf3 {[%clk 0:04:59]}  Re6 {[%clk 0:01:58]} 25. Rd1 {[%clk 0:04:58]}  Kf7 {[%clk 0:01:55]} 26. Rd4 {[%clk 0:04:42]}  h5 {[%clk 0:01:52]} 27. Rc4 {[%clk 0:04:38]}  c6 {[%clk 0:01:52]} 28. h3 {[%clk 0:04:35]}  Rb8 {[%clk 0:01:48]} 29. Ra4 {[%clk 0:04:34]}  Rb7 {[%clk 0:01:43]} 30. Ra5 {[%clk 0:04:29]}  Kg6 {[%clk 0:01:42]} 31. g3 {[%clk 0:04:28]}  Rd7 {[%clk 0:01:42]} 32. Ng2 {[%clk 0:04:25]}  Re8 {[%clk 0:01:26]} 33. Nf4+ {[%clk 0:04:26]}  Kg7 {[%clk 0:01:28]} 34. Nxh5+ {[%clk 0:04:23]}  Kg6 {[%clk 0:01:29]} 35. Nf4+ {[%clk 0:04:24]}  Kf7 {[%clk 0:01:29]} 36. Rf5 {[%clk 0:04:23]}  Rd6 {[%clk 0:01:30]} 37. g4 {[%clk 0:04:16]} 1-0


[Site "Internet"]

[Event "Chessable Masters - Torneo preliminare"]
[White "Xu, Yinglun"]
[Black "Vokhidov, Shamsiddin"]
[WhiteFideId "8604940"]
[BlackFideId "14204223"]
[WhiteElo "2523"]
[BlackElo "2514"]
[Result "0-1"]
[Round "2"]
[TimeControl "600+2"]
[Date "2023.03.13"]
[WhiteClock "0:00:06"]
[BlackClock "0:01:24"]

1. c4 {[%clk 0:09:57]}  e5 {[%clk 0:09:57]} 2. Nc3 {[%clk 0:09:56]}  Nf6 {[%clk 0:09:58]} 3. Nf3 {[%clk 0:09:56]}  Nc6 {[%clk 0:09:59]} 4. g3 {[%clk 0:09:57]}  Bb4 {[%clk 0:10:00]} 5. Bg2 {[%clk 0:09:54]}  O-O {[%clk 0:10:00]} 6. Nd5 {[%clk 0:09:55]}  Bc5 {[%clk 0:10:00]} 7. O-O {[%clk 0:09:55]}  d6 {[%clk 0:10:01]} 8. e3 {[%clk 0:09:53]}  Bb6 {[%clk 0:10:02]} 9. a4 {[%clk 0:09:30]}  Be6 {[%clk 0:09:57]} 10. Ng5 {[%clk 0:08:13]}  Bf5 {[%clk 0:09:57]} 11. d3 {[%clk 0:06:46]}  Nxd5 {[%clk 0:09:34]} 12. cxd5 {[%clk 0:06:45]}  Nb4 {[%clk 0:09:07]} 13. e4 {[%clk 0:03:59]}  Bd7 {[%clk 0:09:06]} 14. a5 {[%clk 0:04:00]}  Bc5 {[%clk 0:09:07]} 15. Kh1 {[%clk 0:03:14]}  h6 {[%clk 0:08:37]} 16. Nf3 {[%clk 0:03:12]}  f5 {[%clk 0:08:36]} 17. Be3 {[%clk 0:02:39]}  Bxe3 {[%clk 0:07:26]} 18. fxe3 {[%clk 0:02:40]}  fxe4 {[%clk 0:06:23]} 19. dxe4 {[%clk 0:02:40]}  Bb5 {[%clk 0:06:19]} 20. Rf2 {[%clk 0:02:37]}  Nd3 {[%clk 0:05:14]} 21. Rc2 {[%clk 0:02:02]}  Nc5 {[%clk 0:05:07]} 22. Nxe5 {[%clk 0:01:47]}  Nb3 {[%clk 0:05:04]} 23. Ra3 {[%clk 0:00:52]}  dxe5 {[%clk 0:05:04]} 24. Rc3 {[%clk 0:00:53]}  Rf2 {[%clk 0:04:11]} 25. Raxb3 {[%clk 0:00:49]}  a6 {[%clk 0:03:54]} 26. Rc5 {[%clk 0:00:49]}  Ba4 {[%clk 0:03:41]} 27. Qe1 {[%clk 0:00:49]}  Rxg2 {[%clk 0:03:41]} 28. Kxg2 {[%clk 0:00:27]}  Bxb3 {[%clk 0:03:42]} 29. Qc3 {[%clk 0:00:25]}  Bd1 {[%clk 0:03:37]} 30. Qxe5 {[%clk 0:00:26]}  Qf8 {[%clk 0:03:15]} 31. Rxc7 {[%clk 0:00:05]}  Qf3+ {[%clk 0:03:15]} 32. Kg1 {[%clk 0:00:06]}  Qxe3+ {[%clk 0:03:07]} 33. Kg2 {[%clk 0:00:07]}  Qe2+ {[%clk 0:01:35]} 34. Kg1 {[%clk 0:00:06]}  Qg4 {[%clk 0:01:24]} 0-1


[Site "Internet"]

[Event "Chessable Masters - Torneo preliminare"]
[White "Lenderman, Aleksandr"]
[Black "Vallejo Pons, Francisco"]
[WhiteFideId "2021285"]
[BlackFideId "2205530"]
[WhiteElo "2646"]
[BlackElo "2662"]
[Result "0-1"]
[Round "2"]
[TimeControl "600+2"]
[Date "2023.03.13"]
[WhiteClock "0:00:40"]
[BlackClock "0:00:09"]

1. Nf3 {[%clk 0:10:01]}  e6 {[%clk 0:09:42]} 2. g3 {[%clk 0:09:58]}  b5 {[%clk 0:09:42]} 3. e3 {[%clk 0:09:56]}  c6 {[%clk 0:09:15]} 4. Bg2 {[%clk 0:09:43]}  d5 {[%clk 0:09:15]} 5. O-O {[%clk 0:09:43]}  Nf6 {[%clk 0:09:13]} 6. d4 {[%clk 0:09:34]}  Nbd7 {[%clk 0:09:08]} 7. Qe2 {[%clk 0:09:17]}  a5 {[%clk 0:08:41]} 8. Nbd2 {[%clk 0:09:16]}  Ba6 {[%clk 0:08:28]} 9. Rd1 {[%clk 0:09:10]}  b4 {[%clk 0:08:17]} 10. Qe1 {[%clk 0:09:11]}  Be7 {[%clk 0:08:08]} 11. e4 {[%clk 0:09:08]}  O-O {[%clk 0:08:07]} 12. h4 {[%clk 0:07:50]}  h6 {[%clk 0:07:40]} 13. e5 {[%clk 0:07:38]}  Nh7 {[%clk 0:07:37]} 14. Nf1 {[%clk 0:07:37]}  c5 {[%clk 0:07:36]} 15. dxc5 {[%clk 0:07:37]}  Bxc5 {[%clk 0:07:12]} 16. Bf4 {[%clk 0:07:18]}  Qb6 {[%clk 0:06:40]} 17. Ne3 {[%clk 0:07:08]}  Rfc8 {[%clk 0:06:25]} 18. g4 {[%clk 0:06:48]}  Ndf8 {[%clk 0:05:41]} 19. h5 {[%clk 0:06:31]}  Rc6 {[%clk 0:05:33]} 20. Rac1 {[%clk 0:06:14]}  Rac8 {[%clk 0:05:30]} 21. Bf1 {[%clk 0:05:55]}  a4 {[%clk 0:03:39]} 22. Bd3 {[%clk 0:05:40]}  Bxd3 {[%clk 0:03:13]} 23. cxd3 {[%clk 0:05:41]}  b3 {[%clk 0:03:13]} 24. a3 {[%clk 0:05:37]}  Bd4 {[%clk 0:02:49]} 25. Rxc6 {[%clk 0:05:33]}  Rxc6 {[%clk 0:02:51]} 26. Qd2 {[%clk 0:05:10]}  Ng5 {[%clk 0:02:28]} 27. Nxg5 {[%clk 0:04:50]}  hxg5 {[%clk 0:02:30]} 28. Bxg5 {[%clk 0:04:51]}  Nd7 {[%clk 0:02:10]} 29. Qe2 {[%clk 0:04:20]}  Nxe5 {[%clk 0:01:38]} 30. Kg2 {[%clk 0:04:16]}  Bxe3 {[%clk 0:01:01]} 31. Bxe3 {[%clk 0:04:14]}  Rc2 {[%clk 0:01:02]} 32. Bxb6 {[%clk 0:03:40]}  Rxe2 {[%clk 0:01:02]} 33. Bd4 {[%clk 0:03:42]}  Nc6 {[%clk 0:00:36]} 34. Bc3 {[%clk 0:03:43]}  Rc2 {[%clk 0:00:30]} 35. d4 {[%clk 0:01:08]}  Na7 {[%clk 0:00:30]} 36. Rb1 {[%clk 0:01:10]}  Nb5 {[%clk 0:00:29]} 37. Bb4 {[%clk 0:01:11]}  Nxd4 {[%clk 0:00:28]} 38. g5 {[%clk 0:01:13]}  Nc6 {[%clk 0:00:19]} 39. Be1 {[%clk 0:01:04]}  Ne5 {[%clk 0:00:17]} 40. Bc3 {[%clk 0:01:03]}  Nc4 {[%clk 0:00:09]} 41. g6 {[%clk 0:01:05]}  Rxc3 {[%clk 0:00:04]} 42. bxc3 {[%clk 0:01:05]}  Nxa3 {[%clk 0:00:05]} 43. Ra1 {[%clk 0:00:36]}  b2 {[%clk 0:00:06]} 44. Rxa3 {[%clk 0:00:37]}  b1=Q {[%clk 0:00:08]} 45. Rxa4 {[%clk 0:00:39]}  fxg6 {[%clk 0:00:07]} 46. hxg6 {[%clk 0:00:40]}  Qxg6+ {[%clk 0:00:09]} 0-1


[Site "Internet"]

[Event "Chessable Masters - Torneo preliminare"]
[White "Vetoshko, Volodymyr"]
[Black "Dreev, Aleksey"]
[WhiteFideId "14122480"]
[BlackFideId "4100107"]
[WhiteElo "2457"]
[BlackElo "2557"]
[Result "0-1"]
[Round "2"]
[TimeControl "600+2"]
[Date "2023.03.13"]
[WhiteClock "0:00:04"]
[BlackClock "0:01:28"]

1. e4 {[%clk 0:10:00]}  c6 {[%clk 0:10:00]} 2. d4 {[%clk 0:09:57]}  d5 {[%clk 0:10:01]} 3. exd5 {[%clk 0:09:59]}  cxd5 {[%clk 0:10:02]} 4. Bd3 {[%clk 0:09:59]}  Nc6 {[%clk 0:09:58]} 5. c3 {[%clk 0:10:00]}  Qc7 {[%clk 0:09:55]} 6. Na3 {[%clk 0:09:26]}  a6 {[%clk 0:09:44]} 7. Nc2 {[%clk 0:09:26]}  Nf6 {[%clk 0:08:28]} 8. h3 {[%clk 0:09:23]}  g6 {[%clk 0:08:26]} 9. Ne2 {[%clk 0:09:06]}  Bf5 {[%clk 0:08:20]} 10. Bf4 {[%clk 0:08:48]}  Qd7 {[%clk 0:08:15]} 11. O-O {[%clk 0:08:32]}  Bg7 {[%clk 0:08:09]} 12. Ne1 {[%clk 0:07:06]}  O-O {[%clk 0:07:59]} 13. Ng3 {[%clk 0:06:31]}  e6 {[%clk 0:06:52]} 14. Be2 {[%clk 0:04:26]}  Rfe8 {[%clk 0:06:19]} 15. Nd3 {[%clk 0:03:58]}  Bxd3 {[%clk 0:06:11]} 16. Bxd3 {[%clk 0:04:00]}  b5 {[%clk 0:06:10]} 17. a3 {[%clk 0:03:52]}  Na5 {[%clk 0:06:04]} 18. Qe2 {[%clk 0:02:58]}  Rec8 {[%clk 0:05:42]} 19. Rfe1 {[%clk 0:02:33]}  Nc4 {[%clk 0:05:38]} 20. Nf1 {[%clk 0:02:30]}  Nh5 {[%clk 0:05:04]} 21. Bh2 {[%clk 0:01:47]}  Bh6 {[%clk 0:05:04]} 22. g3 {[%clk 0:01:13]}  Re8 {[%clk 0:03:44]} 23. f4 {[%clk 0:00:57]}  f5 {[%clk 0:03:42]} 24. Kg2 {[%clk 0:00:27]}  Nf6 {[%clk 0:03:33]} 25. Bg1 {[%clk 0:00:12]}  Ne4 {[%clk 0:03:26]} 26. Nh2 {[%clk 0:00:12]}  g5 {[%clk 0:03:10]} 27. fxg5 {[%clk 0:00:12]}  Bxg5 {[%clk 0:03:11]} 28. Nf3 {[%clk 0:00:14]}  Qg7 {[%clk 0:03:06]} 29. Bxe4 {[%clk 0:00:09]}  dxe4 {[%clk 0:02:43]} 30. Nxg5 {[%clk 0:00:11]}  Qxg5 {[%clk 0:02:44]} 31. b3 {[%clk 0:00:12]}  Na5 {[%clk 0:02:22]} 32. Be3 {[%clk 0:00:12]}  Qg6 {[%clk 0:02:19]} 33. Rab1 {[%clk 0:00:10]}  Rac8 {[%clk 0:02:18]} 34. Rec1 {[%clk 0:00:11]}  Nc6 {[%clk 0:02:09]} 35. c4 {[%clk 0:00:12]}  e5 {[%clk 0:02:09]} 36. dxe5 {[%clk 0:00:06]}  Nxe5 {[%clk 0:02:06]} 37. cxb5 {[%clk 0:00:07]}  Nd3 {[%clk 0:02:03]} 38. Rxc8 {[%clk 0:00:08]}  Rxc8 {[%clk 0:02:05]} 39. bxa6 {[%clk 0:00:07]}  f4 {[%clk 0:02:02]} 40. Qg4 {[%clk 0:00:04]}  Qxg4 {[%clk 0:02:00]} 41. hxg4 {[%clk 0:00:06]}  fxe3 {[%clk 0:02:01]} 42. Kf1 {[%clk 0:00:05]}  Rc2 {[%clk 0:01:56]} 43. a7 {[%clk 0:00:03]}  e2+ {[%clk 0:01:56]} 44. Kg1 {[%clk 0:00:05]}  Rc8 {[%clk 0:01:56]} 45. b4 {[%clk 0:00:05]}  e3 {[%clk 0:01:35]} 46. b5 {[%clk 0:00:05]}  Nc1 {[%clk 0:01:31]} 47. Rxc1 {[%clk 0:00:03]}  Rxc1+ {[%clk 0:01:29]} 48. Kg2 {[%clk 0:00:04]}  Rc8 {[%clk 0:01:28]} 0-1


[Site "Internet"]

[Event "Chessable Masters - Torneo preliminare"]
[White "Pantsulaia, Levan"]
[Black "Frolyanov, Dmitry"]
[WhiteFideId "13602071"]
[BlackFideId "4151976"]
[WhiteElo "2533"]
[BlackElo "2451"]
[Result "0-1"]
[Round "2"]
[TimeControl "600+2"]
[Date "2023.03.13"]
[WhiteClock "0:00:04"]
[BlackClock "0:00:21"]

1. Nf3 {[%clk 0:10:01]}  d5 {[%clk 0:09:59]} 2. c4 {[%clk 0:10:02]}  e6 {[%clk 0:09:57]} 3. g3 {[%clk 0:10:00]}  Nf6 {[%clk 0:09:57]} 4. Bg2 {[%clk 0:10:01]}  Be7 {[%clk 0:09:57]} 5. O-O {[%clk 0:10:01]}  O-O {[%clk 0:09:57]} 6. b3 {[%clk 0:10:02]}  b6 {[%clk 0:09:56]} 7. cxd5 {[%clk 0:10:01]}  exd5 {[%clk 0:09:55]} 8. d4 {[%clk 0:10:01]}  Bb7 {[%clk 0:09:53]} 9. Nc3 {[%clk 0:10:02]}  Nbd7 {[%clk 0:09:41]} 10. Bb2 {[%clk 0:09:14]}  c6 {[%clk 0:09:33]} 11. Ne5 {[%clk 0:08:58]}  Nxe5 {[%clk 0:09:27]} 12. dxe5 {[%clk 0:09:00]}  Nd7 {[%clk 0:09:28]} 13. e4 {[%clk 0:08:21]}  d4 {[%clk 0:08:47]} 14. Qxd4 {[%clk 0:08:20]}  Bc5 {[%clk 0:08:47]} 15. Qd1 {[%clk 0:08:21]}  Nxe5 {[%clk 0:08:48]} 16. Na4 {[%clk 0:08:23]}  Nd3 {[%clk 0:08:04]} 17. Nxc5 {[%clk 0:08:20]}  bxc5 {[%clk 0:07:15]} 18. Bc3 {[%clk 0:08:08]}  Ba6 {[%clk 0:07:16]} 19. Qg4 {[%clk 0:08:04]}  f6 {[%clk 0:06:59]} 20. Rfd1 {[%clk 0:06:00]}  Qe7 {[%clk 0:06:53]} 21. Rd2 {[%clk 0:05:39]}  Rad8 {[%clk 0:06:24]} 22. Rad1 {[%clk 0:05:39]}  Ne5 {[%clk 0:05:49]} 23. Qf5 {[%clk 0:04:51]}  Rxd2 {[%clk 0:05:46]} 24. Rxd2 {[%clk 0:04:50]}  c4 {[%clk 0:05:48]} 25. h3 {[%clk 0:04:03]}  cxb3 {[%clk 0:05:41]} 26. axb3 {[%clk 0:04:05]}  Bc8 {[%clk 0:05:26]} 27. Qf4 {[%clk 0:04:05]}  Qc5 {[%clk 0:05:19]} 28. Bd4 {[%clk 0:03:36]}  Qb5 {[%clk 0:04:49]} 29. Qe3 {[%clk 0:03:34]}  Be6 {[%clk 0:04:43]} 30. f4 {[%clk 0:03:24]}  Nf7 {[%clk 0:04:43]} 31. Bc5 {[%clk 0:03:07]}  Re8 {[%clk 0:04:24]} 32. b4 {[%clk 0:02:27]}  a5 {[%clk 0:04:24]} 33. bxa5 {[%clk 0:02:20]}  Qxa5 {[%clk 0:04:26]} 34. Kh2 {[%clk 0:02:20]}  Bd5 {[%clk 0:03:53]} 35. Qd4 {[%clk 0:00:38]}  Bxe4 {[%clk 0:03:25]} 36. Re2 {[%clk 0:00:39]}  f5 {[%clk 0:03:05]} 37. Bb4 {[%clk 0:00:39]}  Qd5 {[%clk 0:02:55]} 38. Qa1 {[%clk 0:00:12]}  Qc4 {[%clk 0:02:48]} 39. Qe1 {[%clk 0:00:13]}  h6 {[%clk 0:01:47]} 40. Ba3 {[%clk 0:00:13]}  Ra8 {[%clk 0:01:43]} 41. Bxe4 {[%clk 0:00:12]}  fxe4 {[%clk 0:01:43]} 42. Bc1 {[%clk 0:00:03]}  Ra1 {[%clk 0:01:40]} 43. Rxe4 {[%clk 0:00:03]}  Qc2+ {[%clk 0:01:32]} 44. Re2 {[%clk 0:00:02]}  Rxc1 {[%clk 0:01:30]} 45. Rxc2 {[%clk 0:00:03]}  Rxe1 {[%clk 0:01:30]} 46. Rxc6 {[%clk 0:00:05]}  Re2+ {[%clk 0:01:31]} 47. Kg1 {[%clk 0:00:07]}  h5 {[%clk 0:01:22]} 48. Rc5 {[%clk 0:00:05]}  g6 {[%clk 0:01:21]} 49. Rc6 {[%clk 0:00:06]}  Kg7 {[%clk 0:01:21]} 50. Kh1 {[%clk 0:00:06]}  Rd2 {[%clk 0:01:17]} 51. Kg1 {[%clk 0:00:07]}  Nd6 {[%clk 0:01:10]} 52. Rc7+ {[%clk 0:00:08]}  Kf6 {[%clk 0:01:09]} 53. g4 {[%clk 0:00:09]}  hxg4 {[%clk 0:00:55]} 54. hxg4 {[%clk 0:00:11]}  Rd4 {[%clk 0:00:56]} 55. Rd7 {[%clk 0:00:12]}  Nb5 {[%clk 0:00:44]} 56. Rxd4 {[%clk 0:00:12]}  Nxd4 {[%clk 0:00:44]} 57. Kf2 {[%clk 0:00:14]}  Nb3 {[%clk 0:00:36]} 58. Ke3 {[%clk 0:00:15]}  Nc5 {[%clk 0:00:36]} 59. Kd4 {[%clk 0:00:16]}  Ne6+ {[%clk 0:00:32]} 60. Ke4 {[%clk 0:00:18]}  Nc7 {[%clk 0:00:32]} 61. Kd4 {[%clk 0:00:17]}  Nb5+ {[%clk 0:00:32]} 62. Ke4 {[%clk 0:00:17]}  Nc3+ {[%clk 0:00:33]} 63. Kd4 {[%clk 0:00:18]}  Nd1 {[%clk 0:00:34]} 64. Ke4 {[%clk 0:00:18]}  Kf7 {[%clk 0:00:32]} 65. Kf3 {[%clk 0:00:18]}  Kg7 {[%clk 0:00:33]} 66. Ke2 {[%clk 0:00:20]}  Nc3+ {[%clk 0:00:33]} 67. Kd3 {[%clk 0:00:21]}  Nb5 {[%clk 0:00:34]} 68. Ke4 {[%clk 0:00:19]}  Kf6 {[%clk 0:00:33]} 69. Kd3 {[%clk 0:00:17]}  Nd6 {[%clk 0:00:29]} 70. Kd4 {[%clk 0:00:18]}  Nb7 {[%clk 0:00:29]} 71. Kd5 {[%clk 0:00:18]}  Na5 {[%clk 0:00:30]} 72. Kd4 {[%clk 0:00:14]}  Nb3+ {[%clk 0:00:31]} 73. Ke3 {[%clk 0:00:13]}  Ke7 {[%clk 0:00:25]} 74. Ke4 {[%clk 0:00:13]}  Nc1 {[%clk 0:00:22]} 75. Ke3 {[%clk 0:00:11]}  Kd6 {[%clk 0:00:21]} 76. Kf3 {[%clk 0:00:12]}  Kd5 {[%clk 0:00:22]} 77. Ke3 {[%clk 0:00:09]}  Nb3 {[%clk 0:00:22]} 78. Kd3 {[%clk 0:00:09]}  Nc5+ {[%clk 0:00:23]} 79. Ke3 {[%clk 0:00:11]}  Nd7 {[%clk 0:00:24]} 80. Kf3 {[%clk 0:00:08]}  Nf6 {[%clk 0:00:25]} 81. g5 {[%clk 0:00:04]}  Nh5 {[%clk 0:00:21]} 0-1


[Site "Internet"]

[Event "Chessable Masters - Torneo preliminare"]
[White "Tabatabaei, M. Amin"]
[Black "Makhnev, Denis"]
[WhiteFideId "12521213"]
[BlackFideId "13707647"]
[WhiteElo "2558"]
[BlackElo "2505"]
[Result "1-0"]
[Round "2"]
[TimeControl "600+2"]
[Date "2023.03.13"]
[WhiteClock "0:00:39"]
[BlackClock "0:00:05"]

1. d4 {[%clk 0:10:01]}  Nf6 {[%clk 0:09:57]} 2. c4 {[%clk 0:10:02]}  e6 {[%clk 0:09:58]} 3. Nf3 {[%clk 0:10:02]}  d5 {[%clk 0:09:56]} 4. g3 {[%clk 0:10:03]}  Bb4+ {[%clk 0:09:56]} 5. Bd2 {[%clk 0:10:04]}  Be7 {[%clk 0:09:56]} 6. Bg2 {[%clk 0:10:05]}  O-O {[%clk 0:09:52]} 7. Qc2 {[%clk 0:10:06]}  Ne4 {[%clk 0:09:43]} 8. O-O {[%clk 0:10:00]}  Nd7 {[%clk 0:09:44]} 9. Nc3 {[%clk 0:09:49]}  Nxd2 {[%clk 0:09:44]} 10. Nxd2 {[%clk 0:09:44]}  c6 {[%clk 0:09:46]} 11. Rad1 {[%clk 0:09:25]}  f5 {[%clk 0:09:31]} 12. a3 {[%clk 0:09:26]}  a5 {[%clk 0:09:25]} 13. e3 {[%clk 0:09:27]}  Kh8 {[%clk 0:08:04]} 14. Rb1 {[%clk 0:09:22]}  b5 {[%clk 0:07:54]} 15. cxb5 {[%clk 0:09:09]}  cxb5 {[%clk 0:07:55]} 16. Nxb5 {[%clk 0:09:06]}  Ba6 {[%clk 0:07:56]} 17. a4 {[%clk 0:09:07]}  Qb6 {[%clk 0:07:57]} 18. Rfc1 {[%clk 0:08:58]}  Bxb5 {[%clk 0:06:15]} 19. axb5 {[%clk 0:09:00]}  Qxb5 {[%clk 0:06:17]} 20. Qc6 {[%clk 0:08:52]}  Qxc6 {[%clk 0:05:59]} 21. Rxc6 {[%clk 0:08:54]}  Bb4 {[%clk 0:06:00]} 22. Nf3 {[%clk 0:08:38]}  Rfe8 {[%clk 0:05:56]} 23. Rbc1 {[%clk 0:06:45]}  Rab8 {[%clk 0:05:14]} 24. Rc7 {[%clk 0:05:16]}  Nf8 {[%clk 0:04:50]} 25. Ne5 {[%clk 0:04:55]}  Kg8 {[%clk 0:04:50]} 26. Nc6 {[%clk 0:03:37]}  Rb6 {[%clk 0:04:36]} 27. Ra7 {[%clk 0:03:28]}  Bd6 {[%clk 0:03:36]} 28. Rc2 {[%clk 0:03:29]}  Ng6 {[%clk 0:03:37]} 29. Nxa5 {[%clk 0:03:18]}  Reb8 {[%clk 0:03:37]} 30. b3 {[%clk 0:03:13]}  Ne7 {[%clk 0:03:38]} 31. Bf1 {[%clk 0:02:57]}  Kf8 {[%clk 0:03:26]} 32. Ba6 {[%clk 0:02:21]}  Bb4 {[%clk 0:02:31]} 33. Rcc7 {[%clk 0:02:21]}  Bxa5 {[%clk 0:02:13]} 34. Rxe7 {[%clk 0:02:22]}  Rxa6 {[%clk 0:02:14]} 35. Rf7+ {[%clk 0:02:18]}  Ke8 {[%clk 0:02:15]} 36. Rae7+ {[%clk 0:02:01]}  Kd8 {[%clk 0:02:15]} 37. Rxg7 {[%clk 0:02:03]}  Rxb3 {[%clk 0:02:09]} 38. Rxh7 {[%clk 0:01:59]}  Rc6 {[%clk 0:00:58]} 39. Reg7 {[%clk 0:01:06]}  Kc8 {[%clk 0:00:48]} 40. Rh8+ {[%clk 0:00:58]}  Bd8 {[%clk 0:00:48]} 41. h4 {[%clk 0:00:53]}  Rc7 {[%clk 0:00:13]} 42. Rgg8 {[%clk 0:00:55]}  Rd7 {[%clk 0:00:14]} 43. h5 {[%clk 0:00:57]}  Kc7 {[%clk 0:00:15]} 44. Rg6 {[%clk 0:00:48]}  Rb6 {[%clk 0:00:04]} 45. h6 {[%clk 0:00:50]}  Be7 {[%clk 0:00:02]} 46. h7 {[%clk 0:00:45]}  Bd6 {[%clk 0:00:02]} 47. Rc8+ {[%clk 0:00:40]}  Kxc8 {[%clk 0:00:03]} 48. h8=Q+ {[%clk 0:00:42]}  Rd8 {[%clk 0:00:03]} 49. Qh6 {[%clk 0:00:38]}  Bf8 {[%clk 0:00:03]} 50. Qh7 {[%clk 0:00:38]}  Rb7 {[%clk 0:00:02]} 51. Qg8 {[%clk 0:00:38]}  Bd6 {[%clk 0:00:03]} 52. Qxe6+ {[%clk 0:00:39]}  Rbd7 {[%clk 0:00:05]} 53. Qxf5 {[%clk 0:00:39]} 1-0


[Site "Internet"]